[Event "Late-Titled-Tuesday-Blitz-May-28-2024"]
[Site "Chess.com"]
[Date "2024.05.28"]
[Round "7"]
[White "Bryanl106"]
[Black "Abduzhaparov"]
[Result "1-0"]
[WhiteElo "2698"]
[BlackElo "2499"]
[TimeControl "180+1"]
[EndTime "15:18:17 PDT"]
[Termination "Bryanl106 won on time"]

1. e4 {[%clk 0:03:00.6]} 1... d6 {[%clk 0:03:00.9]} 2. d4 {[%clk 0:03:00.7]}
2... Nf6 {[%clk 0:03:01.8]} 3. Nc3 {[%clk 0:03:01]} 3... e5 {[%clk 0:03:02.7]}
4. Nf3 {[%clk 0:02:56.4]} 4... exd4 {[%clk 0:03:02]} 5. Nxd4 {[%clk 0:02:56.4]}
5... Be7 {[%clk 0:03:02.9]} 6. Be2 {[%clk 0:02:53.7]} 6... O-O {[%clk
0:03:03.8]} 7. O-O {[%clk 0:02:53.8]} 7... Re8 {[%clk 0:03:04.3]} 8. Re1 {[%clk
0:02:53.4]} 8... Bf8 {[%clk 0:03:04.1]} 9. Bf3 {[%clk 0:02:53.9]} 9... c6 {[%clk
0:03:03.7]} 10. Bg5 {[%clk 0:02:50.8]} 10... Nbd7 {[%clk 0:03:01.9]} 11. g3
{[%clk 0:02:44.8]} 11... a5 {[%clk 0:03:00.9]} 12. Bg2 {[%clk 0:02:44.5]} 12...
h6 {[%clk 0:02:59.7]} 13. Bf4 {[%clk 0:02:41.5]} 13... Ne5 {[%clk 0:02:55.1]}
14. Qe2 {[%clk 0:02:36.6]} 14... Qb6 {[%clk 0:02:48.3]} 15. Nb3 {[%clk
0:02:29.7]} 15... Bg4 {[%clk 0:02:47.2]} 16. Be3 {[%clk 0:02:21.4]} 16... Bxe2
{[%clk 0:02:31.9]} 17. Bxb6 {[%clk 0:02:21.5]} 17... Nf3+ {[%clk 0:02:32.8]} 18.
Bxf3 {[%clk 0:02:10.8]} 18... Bxf3 {[%clk 0:02:33.7]} 19. Re3 {[%clk 0:02:05.5]}
19... a4 {[%clk 0:02:19.8]} 20. Nd2 {[%clk 0:02:01.8]} 20... Bg4 {[%clk
0:02:15.8]} 21. f3 {[%clk 0:02:00.7]} 21... Be6 {[%clk 0:02:13.4]} 22. Bd4
{[%clk 0:01:58.2]} 22... a3 {[%clk 0:02:09.3]} 23. b3 {[%clk 0:01:56.6]} 23...
d5 {[%clk 0:02:07]} 24. exd5 {[%clk 0:01:34.5]} 24... Nxd5 {[%clk 0:02:02.4]}
25. Nxd5 {[%clk 0:01:33.2]} 25... Bxd5 {[%clk 0:02:03.3]} 26. Rae1 {[%clk
0:01:33.1]} 26... Red8 {[%clk 0:01:55.8]} 27. Bb6 {[%clk 0:01:32.7]} 27... Rd7
{[%clk 0:01:47.7]} 28. c4 {[%clk 0:01:29.4]} 28... Be6 {[%clk 0:01:35.4]} 29.
Ne4 {[%clk 0:01:28]} 29... Bf5 {[%clk 0:01:16.3]} 30. R3e2 {[%clk 0:01:12.1]}
30... Bxe4 {[%clk 0:01:13]} 31. Rxe4 {[%clk 0:01:13]} 31... Rd2 {[%clk
0:01:06.2]} 32. R4e2 {[%clk 0:01:11.9]} 32... Rb2 {[%clk 0:00:49.9]} 33. Re8
{[%clk 0:01:06.4]} 33... Rxe8 {[%clk 0:00:36.7]} 34. Rxe8 {[%clk 0:01:07.3]}
34... Rxa2 {[%clk 0:00:09.8]} 35. Bc5 {[%clk 0:01:07.5]} 35... Ra1+ {[%clk
0:00:09.3]} 36. Kg2 {[%clk 0:01:07.7]} 36... a2 {[%clk 0:00:09.5]} 37. Rxf8+
{[%clk 0:01:08]} 37... Kh7 {[%clk 0:00:09.8]} 38. Ra8 {[%clk 0:01:08.9]} 38...
b5 {[%clk 0:00:08.4]} 39. Bf2 {[%clk 0:01:00.6]} 39... Kg6 {[%clk 0:00:07.4]}
40. g4 {[%clk 0:00:56.4]} 40... f6 {[%clk 0:00:07]} 41. Ra6 {[%clk 0:00:54.9]}
41... bxc4 {[%clk 0:00:04.8]} 42. bxc4 {[%clk 0:00:55.8]} 42... h5 {[%clk
0:00:04.4]} 43. h3 {[%clk 0:00:55.5]} 43... hxg4 {[%clk 0:00:04.5]} 44. hxg4
{[%clk 0:00:56.4]} 44... Kf7 {[%clk 0:00:04.6]} 45. Bd4 {[%clk 0:00:50.3]} 45...
Rd1 {[%clk 0:00:03.5]} 46. Bc3 {[%clk 0:00:43.3]} 46... Rd3 {[%clk 0:00:03.8]}
47. Ba1 {[%clk 0:00:42.6]} 47... Rd2+ {[%clk 0:00:03.2]} 48. Kg3 {[%clk
0:00:41.6]} 48... Rc2 {[%clk 0:00:04.1]} 49. Bd4 {[%clk 0:00:24]} 49... Rd2
{[%clk 0:00:03.1]} 50. Bc3 {[%clk 0:00:16.1]} 50... Rc2 {[%clk 0:00:03.4]} 51.
Ba1 {[%clk 0:00:16.4]} 51... Ke7 {[%clk 0:00:02.1]} 52. c5 {[%clk 0:00:14.7]}
52... Kd7 {[%clk 0:00:01.3]} 53. Kf4 {[%clk 0:00:13.9]} 53... Kc7 {[%clk
0:00:01]} 54. Ra7+ {[%clk 0:00:13.7]} 54... Kb8 {[%clk 0:00:01.2]} 55. Ra5
{[%clk 0:00:13.6]} 55... Kb7 {[%clk 0:00:02.1]} 56. Kf5 {[%clk 0:00:13.5]} 56...
Rc1 {[%clk 0:00:01]} 57. Rxa2 {[%clk 0:00:13]} 1-0

[Event "Late-Titled-Tuesday-Blitz-May-28-2024"]
[Site "Chess.com"]
[Date "2024.05.28"]
[Round "7"]
[White "ManMish2"]
[Black "Jahonas"]
[Result "0-1"]
[WhiteElo "2668"]
[BlackElo "2468"]
[TimeControl "180+1"]
[EndTime "15:18:17 PDT"]
[Termination "Jahonas won by resignation"]

1. e4 {[%clk 0:03:00.9]} 1... c6 {[%clk 0:02:59.9]} 2. d4 {[%clk 0:02:59.9]}
2... d5 {[%clk 0:03:00.5]} 3. Nc3 {[%clk 0:02:59.8]} 3... dxe4 {[%clk
0:03:00.3]} 4. Nxe4 {[%clk 0:03:00.6]} 4... Nf6 {[%clk 0:03:00.5]} 5. Nxf6+
{[%clk 0:03:00.8]} 5... exf6 {[%clk 0:03:00]} 6. c3 {[%clk 0:03:00.9]} 6... Bf5
{[%clk 0:02:59]} 7. Ne2 {[%clk 0:02:57.3]} 7... Bd6 {[%clk 0:02:58.3]} 8. Ng3
{[%clk 0:02:56.8]} 8... Bg6 {[%clk 0:02:57.9]} 9. Bd3 {[%clk 0:02:48.6]} 9...
O-O {[%clk 0:02:57.1]} 10. O-O {[%clk 0:02:48.1]} 10... Re8 {[%clk 0:02:51.1]}
11. Be3 {[%clk 0:02:42.4]} 11... Qc7 {[%clk 0:02:50.1]} 12. Re1 {[%clk
0:02:23.3]} 12... Nd7 {[%clk 0:02:49.2]} 13. Bc4 {[%clk 0:02:14]} 13... Nf8
{[%clk 0:02:45.2]} 14. Qf3 {[%clk 0:02:11.8]} 14... b5 {[%clk 0:02:38.5]} 15.
Bb3 {[%clk 0:02:09.9]} 15... a5 {[%clk 0:02:36.9]} 16. a4 {[%clk 0:02:04.3]}
16... b4 {[%clk 0:02:34.9]} 17. Rac1 {[%clk 0:01:40.8]} 17... bxc3 {[%clk
0:02:19.1]} 18. bxc3 {[%clk 0:01:31.9]} 18... Ba3 {[%clk 0:02:11.8]} 19. Rcd1
{[%clk 0:01:29.3]} 19... Rab8 {[%clk 0:02:05.8]} 20. Bc4 {[%clk 0:01:28.5]}
20... Bc2 {[%clk 0:01:53.4]} 21. Rd2 {[%clk 0:01:27.9]} 21... Bb3 {[%clk
0:01:41.5]} 22. Bd3 {[%clk 0:01:24.9]} 22... Bd5 {[%clk 0:01:37.7]} 23. Qd1
{[%clk 0:01:12.2]} 23... g6 {[%clk 0:01:29.4]} 24. h4 {[%clk 0:01:09.1]} 24...
Bd6 {[%clk 0:01:26.7]} 25. c4 {[%clk 0:00:51.2]} 25... Be6 {[%clk 0:01:23.6]}
26. Ne4 {[%clk 0:00:47.5]} 26... Be7 {[%clk 0:01:20.1]} 27. Bh6 {[%clk 0:00:40]}
27... Bf5 {[%clk 0:01:18.5]} 28. Qf3 {[%clk 0:00:33.4]} 28... Bxe4 {[%clk
0:01:18]} 29. Bxe4 {[%clk 0:00:27.2]} 29... f5 {[%clk 0:01:01.7]} 30. Bxf5
{[%clk 0:00:11.4]} 30... Bb4 {[%clk 0:01:01.2]} 31. Rxe8 {[%clk 0:00:09.5]}
31... Rxe8 {[%clk 0:01:00.6]} 32. Re2 {[%clk 0:00:09.7]} 32... Rxe2 {[%clk
0:00:59.1]} 33. Qxe2 {[%clk 0:00:10.6]} 33... gxf5 {[%clk 0:00:56]} 34. Qf3
{[%clk 0:00:11]} 34... Qd7 {[%clk 0:00:53.2]} 35. d5 {[%clk 0:00:11.3]} 35...
cxd5 {[%clk 0:00:52.6]} 36. cxd5 {[%clk 0:00:12.2]} 36... f6 {[%clk 0:00:44.9]}
37. h5 {[%clk 0:00:11.4]} 37... Bd6 {[%clk 0:00:44.1]} 38. Qc3 {[%clk
0:00:09.1]} 38... Kf7 {[%clk 0:00:42.5]} 39. Qxa5 {[%clk 0:00:08]} 39... Qc7
{[%clk 0:00:40]} 40. Qe1 {[%clk 0:00:06.5]} 40... f4 {[%clk 0:00:37.8]} 41. f3
{[%clk 0:00:06]} 41... Qc5+ {[%clk 0:00:36.9]} 42. Kh2 {[%clk 0:00:06.2]} 42...
Qxd5 {[%clk 0:00:35.1]} 43. Qh4 {[%clk 0:00:06.4]} 43... Qf5 {[%clk 0:00:34.2]}
44. Bxf8 {[%clk 0:00:04.2]} 44... Bxf8 {[%clk 0:00:32.2]} 45. a5 {[%clk
0:00:04.8]} 45... Bc5 {[%clk 0:00:31.8]} 46. a6 {[%clk 0:00:04.6]} 46... Qg5
{[%clk 0:00:31.6]} 47. Qh3 {[%clk 0:00:03.7]} 47... Qg3+ {[%clk 0:00:31.7]} 48.
Qxg3 {[%clk 0:00:04]} 48... fxg3+ {[%clk 0:00:32.6]} 49. Kxg3 {[%clk 0:00:04.6]}
49... Ke6 {[%clk 0:00:33.2]} 50. Kf4 {[%clk 0:00:04.3]} 50... h6 {[%clk
0:00:32.9]} 51. g4 {[%clk 0:00:03.7]} 51... Bd6+ {[%clk 0:00:32.4]} 52. Ke4
{[%clk 0:00:04.2]} 52... Bb8 {[%clk 0:00:32.6]} 53. f4 {[%clk 0:00:04.1]} 53...
Ba7 {[%clk 0:00:32.5]} 54. g5 {[%clk 0:00:02.1]} 54... fxg5 {[%clk 0:00:32.5]}
55. fxg5 {[%clk 0:00:03]} 55... hxg5 {[%clk 0:00:32.9]} 56. Kf3 {[%clk
0:00:02.2]} 56... Kf5 {[%clk 0:00:33]} 57. h6 {[%clk 0:00:02.6]} 57... Kg6
{[%clk 0:00:32.7]} 58. Kg4 {[%clk 0:00:01.9]} 58... Kxh6 {[%clk 0:00:33]} 59.
Kg3 {[%clk 0:00:01.6]} 59... Kh5 {[%clk 0:00:33.1]} 60. Kh3 {[%clk 0:00:02.5]}
60... g4+ {[%clk 0:00:33.5]} 61. Kg3 {[%clk 0:00:03.4]} 61... Kg5 {[%clk
0:00:34.1]} 62. Kg2 {[%clk 0:00:04.3]} 62... Kf4 {[%clk 0:00:34]} 63. Kf1 {[%clk
0:00:04.5]} 63... Kf3 {[%clk 0:00:33.3]} 64. Ke1 {[%clk 0:00:04.9]} 64... g3
{[%clk 0:00:33.7]} 65. Kd2 {[%clk 0:00:04.9]} 65... g2 {[%clk 0:00:33.9]} 0-1

[Event "Late-Titled-Tuesday-Blitz-May-28-2024"]
[Site "Chess.com"]
[Date "2024.05.28"]
[Round "7"]
[White "MusicCityMaster"]
[Black "tgpgoat"]
[Result "1-0"]
[WhiteElo "2394"]
[BlackElo "2495"]
[TimeControl "180+1"]
[EndTime "15:18:17 PDT"]
[Termination "MusicCityMaster won by resignation"]

1. d4 {[%clk 0:03:00.9]} 1... Nf6 {[%clk 0:02:59.6]} 2. c4 {[%clk 0:03:01.1]}
2... c5 {[%clk 0:03:00.2]} 3. d5 {[%clk 0:03:01.2]} 3... b5 {[%clk 0:03:00.8]}
4. cxb5 {[%clk 0:03:01.9]} 4... a6 {[%clk 0:03:01.4]} 5. Nc3 {[%clk 0:03:01.5]}
5... axb5 {[%clk 0:03:01.5]} 6. e4 {[%clk 0:03:01.9]} 6... b4 {[%clk 0:02:58.1]}
7. Nb5 {[%clk 0:03:02]} 7... d6 {[%clk 0:02:57.4]} 8. Bf4 {[%clk 0:03:01.2]}
8... g5 {[%clk 0:02:56.7]} 9. Bxg5 {[%clk 0:03:01.5]} 9... Nxe4 {[%clk
0:02:56.4]} 10. Bf4 {[%clk 0:03:02]} 10... Nf6 {[%clk 0:02:03.9]} 11. Bc4 {[%clk
0:02:57.4]} 11... Bg7 {[%clk 0:02:01.8]} 12. Ne2 {[%clk 0:02:57]} 12... O-O
{[%clk 0:02:01.5]} 13. Ng3 {[%clk 0:02:55.1]} 13... Na6 {[%clk 0:01:56.4]} 14.
O-O {[%clk 0:02:52.3]} 14... Nc7 {[%clk 0:01:56.1]} 15. Nxc7 {[%clk 0:02:51.5]}
15... Qxc7 {[%clk 0:01:57]} 16. Re1 {[%clk 0:02:45.8]} 16... Bg4 {[%clk
0:01:44.7]} 17. Qd2 {[%clk 0:02:43]} 17... Kh8 {[%clk 0:01:41.7]} 18. h3 {[%clk
0:02:40.8]} 18... Bc8 {[%clk 0:01:39]} 19. Bh6 {[%clk 0:02:38.9]} 19... Rg8
{[%clk 0:01:36]} 20. Re2 {[%clk 0:02:30.6]} 20... Ra7 {[%clk 0:01:19.6]} 21.
Rae1 {[%clk 0:02:28.7]} 21... Qd8 {[%clk 0:01:19.9]} 22. Qf4 {[%clk 0:02:13.2]}
22... Bxh6 {[%clk 0:01:18.1]} 23. Qxh6 {[%clk 0:02:11.3]} 23... Rg6 {[%clk
0:01:18.4]} 24. Qh4 {[%clk 0:02:05.4]} 24... Kg7 {[%clk 0:01:12.3]} 25. Bd3
{[%clk 0:01:56.4]} 25... Nxd5 {[%clk 0:01:10.2]} 26. Nh5+ {[%clk 0:01:48.6]}
26... Kg8 {[%clk 0:01:05.7]} 27. Bxg6 {[%clk 0:01:43.7]} 27... hxg6 {[%clk
0:01:04.2]} 28. Qg5 {[%clk 0:01:36.9]} 28... Nc7 {[%clk 0:00:37.2]} 29. Nf4
{[%clk 0:00:41.4]} 29... Ne8 {[%clk 0:00:22]} 30. Rxe7 {[%clk 0:00:33.7]} 30...
Rxe7 {[%clk 0:00:17.9]} 31. Qxe7 {[%clk 0:00:32.9]} 31... Qxe7 {[%clk
0:00:13.6]} 32. Rxe7 {[%clk 0:00:33.8]} 32... Nf6 {[%clk 0:00:14.2]} 33. Rc7
{[%clk 0:00:32.1]} 33... Bf5 {[%clk 0:00:14]} 34. a4 {[%clk 0:00:29.7]} 34...
bxa3 {[%clk 0:00:13.3]} 35. bxa3 {[%clk 0:00:30.6]} 35... d5 {[%clk 0:00:10]}
36. Rxc5 {[%clk 0:00:29.8]} 36... d4 {[%clk 0:00:10.5]} 37. Kf1 {[%clk
0:00:24.4]} 37... Ne4 {[%clk 0:00:08.7]} 38. Rc7 {[%clk 0:00:23.8]} 38... Nc3
{[%clk 0:00:06.6]} 39. Ke1 {[%clk 0:00:22.7]} 39... Bc2 {[%clk 0:00:02.9]} 40.
Rc4 {[%clk 0:00:20.6]} 40... Nb5 {[%clk 0:00:02.1]} 41. a4 {[%clk 0:00:19.7]}
41... Bd3 {[%clk 0:00:01.5]} 42. Rc8+ {[%clk 0:00:19]} 42... Kg7 {[%clk
0:00:01]} 43. axb5 {[%clk 0:00:19.9]} 43... Bxb5 {[%clk 0:00:01.2]} 44. Kd2
{[%clk 0:00:19.3]} 44... Bd7 {[%clk 0:00:01.1]} 45. Rd8 {[%clk 0:00:19.7]} 45...
Bf5 {[%clk 0:00:01.1]} 46. Rxd4 {[%clk 0:00:20.4]} 46... Kf6 {[%clk 0:00:02]}
47. g4 {[%clk 0:00:19.7]} 47... Bc8 {[%clk 0:00:01.6]} 48. Rb4 {[%clk
0:00:19.1]} 48... Ke5 {[%clk 0:00:02.2]} 49. Ke3 {[%clk 0:00:20]} 49... Bd7
{[%clk 0:00:02.1]} 50. Re4+ {[%clk 0:00:19.5]} 50... Kf6 {[%clk 0:00:02.1]} 51.
Rd4 {[%clk 0:00:19.5]} 51... Bc6 {[%clk 0:00:02.5]} 52. Nd5+ {[%clk 0:00:19.6]}
52... Ke6 {[%clk 0:00:02.2]} 53. Nc7+ {[%clk 0:00:19.9]} 53... Kf6 {[%clk
0:00:01.9]} 54. f4 {[%clk 0:00:20.6]} 54... Bg2 {[%clk 0:00:02]} 55. g5+ {[%clk
0:00:20.8]} 55... Kg7 {[%clk 0:00:02.9]} 56. h4 {[%clk 0:00:21.3]} 56... Bh3
{[%clk 0:00:03.4]} 57. Ke4 {[%clk 0:00:20.4]} 57... Bf5+ {[%clk 0:00:04.3]} 58.
Ke5 {[%clk 0:00:20.9]} 58... Kf8 {[%clk 0:00:04.7]} 59. Nb5 {[%clk 0:00:20.9]}
59... Ke7 {[%clk 0:00:05.6]} 60. Nc3 {[%clk 0:00:20.1]} 60... Be6 {[%clk
0:00:06]} 61. Nd5+ {[%clk 0:00:19.5]} 61... Kf8 {[%clk 0:00:05.5]} 62. Nf6
{[%clk 0:00:19.8]} 62... Kg7 {[%clk 0:00:06.4]} 63. Rd8 {[%clk 0:00:18.8]} 1-0

[Event "Late-Titled-Tuesday-Blitz-May-28-2024"]
[Site "Chess.com"]
[Date "2024.05.28"]
[Round "7"]
[White "Tibmat"]
[Black "Charodej1"]
[Result "0-1"]
[WhiteElo "2676"]
[BlackElo "2491"]
[TimeControl "180+1"]
[EndTime "15:18:22 PDT"]
[Termination "Charodej1 won on time"]

1. c4 {[%clk 0:03:00.9]} 1... e5 {[%clk 0:02:59.2]} 2. g3 {[%clk 0:03:00.3]}
2... Nf6 {[%clk 0:02:58.1]} 3. Bg2 {[%clk 0:03:00.5]} 3... d5 {[%clk 0:02:58.5]}
4. cxd5 {[%clk 0:03:00.5]} 4... Nxd5 {[%clk 0:02:59.1]} 5. Nf3 {[%clk
0:02:58.3]} 5... Nc6 {[%clk 0:02:58.4]} 6. O-O {[%clk 0:02:59]} 6... Be7 {[%clk
0:02:58]} 7. d4 {[%clk 0:02:58.6]} 7... e4 {[%clk 0:02:47.1]} 8. Ne5 {[%clk
0:02:56]} 8... f5 {[%clk 0:02:47]} 9. Nxc6 {[%clk 0:02:54.8]} 9... bxc6 {[%clk
0:02:47.9]} 10. Nc3 {[%clk 0:02:42.3]} 10... Be6 {[%clk 0:02:11.7]} 11. Qa4
{[%clk 0:02:41.1]} 11... Qd7 {[%clk 0:02:07.9]} 12. Nxd5 {[%clk 0:02:32.2]}
12... cxd5 {[%clk 0:02:01.1]} 13. Qxd7+ {[%clk 0:02:30.4]} 13... Kxd7 {[%clk
0:02:01.1]} 14. Bf4 {[%clk 0:02:31.3]} 14... c5 {[%clk 0:01:58.9]} 15. dxc5
{[%clk 0:02:25.1]} 15... Bxc5 {[%clk 0:01:58.7]} 16. Rac1 {[%clk 0:02:24.6]}
16... Rhc8 {[%clk 0:01:55.5]} 17. Be5 {[%clk 0:02:24.3]} 17... g5 {[%clk
0:01:49.3]} 18. Rfd1 {[%clk 0:02:24.6]} 18... Ke7 {[%clk 0:01:42.3]} 19. e3
{[%clk 0:02:21.4]} 19... Bd6 {[%clk 0:01:18.1]} 20. Bd4 {[%clk 0:02:14.9]} 20...
f4 {[%clk 0:01:02.9]} 21. Bf1 {[%clk 0:02:11.2]} 21... a6 {[%clk 0:00:58]} 22.
a3 {[%clk 0:01:51.5]} 22... a5 {[%clk 0:00:57.5]} 23. Bb5 {[%clk 0:01:26.4]}
23... Rab8 {[%clk 0:00:52.4]} 24. a4 {[%clk 0:01:23.8]} 24... h5 {[%clk
0:00:34.1]} 25. Bc3 {[%clk 0:01:01.7]} 25... h4 {[%clk 0:00:14.8]} 26. gxf4
{[%clk 0:00:28.1]} 26... gxf4 {[%clk 0:00:15]} 27. Bxa5 {[%clk 0:00:29]} 27...
Rg8+ {[%clk 0:00:14.6]} 28. Kf1 {[%clk 0:00:29.4]} 28... f3 {[%clk 0:00:11.5]}
29. Bc7 {[%clk 0:00:23]} 29... Rbc8 {[%clk 0:00:09.8]} 30. Bxd6+ {[%clk
0:00:22.6]} 30... Kxd6 {[%clk 0:00:10.7]} 31. Ke1 {[%clk 0:00:20.4]} 31... Rg1+
{[%clk 0:00:10.2]} 32. Kd2 {[%clk 0:00:20.7]} 32... Rxc1 {[%clk 0:00:10.2]} 33.
Rxc1 {[%clk 0:00:20.6]} 33... Rg2 {[%clk 0:00:11.1]} 34. Rf1 {[%clk 0:00:17.7]}
34... Rxh2 {[%clk 0:00:11]} 35. b4 {[%clk 0:00:18.3]} 35... Rg2 {[%clk
0:00:11.3]} 36. a5 {[%clk 0:00:18]} 36... h3 {[%clk 0:00:11.8]} 37. a6 {[%clk
0:00:15.2]} 37... Bc8 {[%clk 0:00:10.4]} 38. Kc3 {[%clk 0:00:10.1]} 38... h2
{[%clk 0:00:10.5]} 39. Rh1 {[%clk 0:00:10.3]} 39... Rxf2 {[%clk 0:00:10.9]} 40.
a7 {[%clk 0:00:09.6]} 40... Bb7 {[%clk 0:00:10.7]} 41. Ba6 {[%clk 0:00:07.6]}
41... Ba8 {[%clk 0:00:10.4]} 42. b5 {[%clk 0:00:07.9]} 42... Kc5 {[%clk
0:00:10.7]} 43. Kb3 {[%clk 0:00:08]} 43... Re2 {[%clk 0:00:10.1]} 44. Rc1+
{[%clk 0:00:07.9]} 44... Kb6 {[%clk 0:00:09.9]} 45. Kb4 {[%clk 0:00:07.6]} 45...
Rb2+ {[%clk 0:00:09.3]} 46. Kc3 {[%clk 0:00:07.4]} 46... Re2 {[%clk 0:00:09.4]}
47. Rh1 {[%clk 0:00:07.9]} 47... Rxe3+ {[%clk 0:00:09.4]} 48. Kd4 {[%clk
0:00:08.4]} 48... Re2 {[%clk 0:00:10.3]} 49. Rc1 {[%clk 0:00:05.7]} 49... Rd2+
{[%clk 0:00:09.8]} 50. Ke5 {[%clk 0:00:05.5]} 50... f2 {[%clk 0:00:10]} 51. Rc6+
{[%clk 0:00:02.6]} 51... Bxc6 {[%clk 0:00:09.8]} 52. bxc6 {[%clk 0:00:03.1]}
52... Kxa7 {[%clk 0:00:10.7]} 53. c7 {[%clk 0:00:03.1]} 53... Rc2 {[%clk
0:00:11.3]} 0-1

[Event "Late-Titled-Tuesday-Blitz-May-28-2024"]
[Site "Chess.com"]
[Date "2024.05.28"]
[Round "7"]
[White "robertoalejandro10"]
[Black "GMthekingindian"]
[Result "0-1"]
[WhiteElo "2476"]
[BlackElo "2352"]
[TimeControl "180+1"]
[EndTime "15:18:22 PDT"]
[Termination "GMthekingindian won by resignation"]

1. Nf3 {[%clk 0:03:00.9]} 1... d5 {[%clk 0:02:57.8]} 2. c4 {[%clk 0:03:00.4]}
2... e6 {[%clk 0:02:57.2]} 3. b3 {[%clk 0:03:00.6]} 3... Nf6 {[%clk 0:02:57.8]}
4. Bb2 {[%clk 0:03:00.9]} 4... Be7 {[%clk 0:02:57.8]} 5. g3 {[%clk 0:03:01.5]}
5... Nbd7 {[%clk 0:02:57.5]} 6. Bg2 {[%clk 0:03:02]} 6... b6 {[%clk 0:02:57]} 7.
O-O {[%clk 0:03:02.6]} 7... Bb7 {[%clk 0:02:57.5]} 8. e3 {[%clk 0:03:03.3]} 8...
O-O {[%clk 0:02:48.9]} 9. Qe2 {[%clk 0:03:02.9]} 9... c5 {[%clk 0:02:47.5]} 10.
Rd1 {[%clk 0:03:03.1]} 10... Rc8 {[%clk 0:02:42.9]} 11. Nc3 {[%clk 0:03:02.7]}
11... Qc7 {[%clk 0:02:37.1]} 12. Rac1 {[%clk 0:03:01.2]} 12... Rfd8 {[%clk
0:02:36]} 13. d3 {[%clk 0:03:00.8]} 13... a6 {[%clk 0:02:34.8]} 14. cxd5 {[%clk
0:02:58.8]} 14... Nxd5 {[%clk 0:02:29.5]} 15. Nxd5 {[%clk 0:02:55.1]} 15... Bxd5
{[%clk 0:02:28.1]} 16. e4 {[%clk 0:02:55.6]} 16... Bb7 {[%clk 0:02:20.2]} 17. h4
{[%clk 0:02:53.4]} 17... Qb8 {[%clk 0:02:19.2]} 18. Bh3 {[%clk 0:02:43.8]} 18...
Bf6 {[%clk 0:02:17.9]} 19. Ng5 {[%clk 0:02:38.3]} 19... Bxb2 {[%clk 0:01:43.3]}
20. Qxb2 {[%clk 0:01:51.9]} 20... Ne5 {[%clk 0:01:31.8]} 21. Qe2 {[%clk
0:01:31.6]} 21... h6 {[%clk 0:01:17.3]} 22. Nf3 {[%clk 0:01:30.7]} 22... Nc6
{[%clk 0:01:11.1]} 23. Bf1 {[%clk 0:01:09.5]} 23... Rd6 {[%clk 0:01:09.1]} 24.
Qb2 {[%clk 0:01:07.8]} 24... Rcd8 {[%clk 0:01:08.9]} 25. a3 {[%clk 0:01:05.8]}
25... a5 {[%clk 0:01:08.1]} 26. Nd2 {[%clk 0:00:40.4]} 26... Nd4 {[%clk
0:01:03]} 27. Nc4 {[%clk 0:00:35.6]} 27... Rc6 {[%clk 0:01:03.2]} 28. a4 {[%clk
0:00:31.7]} 28... Ba6 {[%clk 0:01:01.7]} 29. Bg2 {[%clk 0:00:29.6]} 29... Bxc4
{[%clk 0:01:01.5]} 30. bxc4 {[%clk 0:00:30.5]} 30... e5 {[%clk 0:00:56.5]} 31.
Kh2 {[%clk 0:00:25.6]} 31... Qd6 {[%clk 0:00:54.2]} 32. Rd2 {[%clk 0:00:25.3]}
32... g6 {[%clk 0:00:53.8]} 33. Qc3 {[%clk 0:00:24.7]} 33... Qf6 {[%clk
0:00:52.3]} 34. Re1 {[%clk 0:00:19.1]} 34... Rcd6 {[%clk 0:00:52.3]} 35. Re3
{[%clk 0:00:18.1]} 35... Qe6 {[%clk 0:00:51.3]} 36. Qb2 {[%clk 0:00:16.1]} 36...
Qe8 {[%clk 0:00:51.7]} 37. f4 {[%clk 0:00:14.5]} 37... exf4 {[%clk 0:00:35.5]}
38. gxf4 {[%clk 0:00:15.4]} 38... Qxa4 {[%clk 0:00:35.9]} 39. e5 {[%clk
0:00:13.5]} 39... R6d7 {[%clk 0:00:34.8]} 40. Bd5 {[%clk 0:00:13.5]} 40... Re8
{[%clk 0:00:28.9]} 41. Rg3 {[%clk 0:00:12.6]} 41... Qb4 {[%clk 0:00:23.1]} 42.
Qxb4 {[%clk 0:00:10.7]} 42... cxb4 {[%clk 0:00:19.9]} 43. Rxg6+ {[%clk
0:00:10.6]} 43... Kh7 {[%clk 0:00:18.9]} 44. Rg3 {[%clk 0:00:07.5]} 44... a4
{[%clk 0:00:17.5]} 45. Be4+ {[%clk 0:00:06]} 45... Kh8 {[%clk 0:00:15.6]} 46.
Kh3 {[%clk 0:00:06.2]} 46... Rg8 {[%clk 0:00:12.2]} 47. Rxg8+ {[%clk 0:00:04.4]}
47... Kxg8 {[%clk 0:00:13.1]} 48. f5 {[%clk 0:00:02.9]} 48... b3 {[%clk
0:00:11.2]} 49. Bd5 {[%clk 0:00:02.4]} 49... a3 {[%clk 0:00:06.9]} 50. e6 {[%clk
0:00:01.2]} 50... fxe6 {[%clk 0:00:06.1]} 51. fxe6 {[%clk 0:00:02.1]} 51... Re7
{[%clk 0:00:06.1]} 52. Kg4 {[%clk 0:00:02.7]} 52... b2 {[%clk 0:00:05.5]} 53.
Rd1 {[%clk 0:00:03.4]} 53... a2 {[%clk 0:00:05.3]} 54. c5 {[%clk 0:00:03.8]}
54... b1=Q {[%clk 0:00:05.6]} 55. Rxb1 {[%clk 0:00:02.8]} 55... axb1=Q {[%clk
0:00:06.5]} 56. cxb6 {[%clk 0:00:03.6]} 56... Qxb6 {[%clk 0:00:06.5]} 0-1